Cogmind - Beta 17.1 @@@ ROGUE MODE // 2026.08.29 @ 13:55:40 // Winter2019/RPGLIKE Player: obl-vn Result: Destroyed by H-61 Shepherd with Heavy Assault Cannon Performance ------------- Evolutions (3) 1500 Regions Visited (6) 1200 Robots Destroyed (139) 695 Value Destroyed (5005) 5005 Prototype IDs (38) 760 Alien Tech Used (0) 0 Bonus (8650) 8650 TOTAL SCORE: 17810 Bonus ------- High Alert Combat Kills 1185 Follower Combat Kills 110 Prayed to X0-1V1 5000 Major X0-1V1 Interference 3950 Friendly Fire -1595 Cogmind --------- Core Integrity 0/850 Matter 5/300 Energy 139/170 System Corruption 2% Temperature Cool (0) Movement Hovering (74) Location -7/Factory Parts ------- > --- POWER (1) -------- Light Neutrino Core > --- PROPULSION (3) --- Combat Antigrav System Combat Antigrav System Combat Antigrav System > --- UTILITY (7) ------ Experimental Salvage Targeting Computer (fused) Experimental Core Analyzer Advanced Weapon Cycler Advanced Transmission Jammer Graphene Brace Improved Remote Force Field (fused) System Purifier > --- WEAPON (2) ------- 8R-AWN's Boregun 8R-AWN's Boregun > --- INVENTORY (2) ---- Protomatter-44 Advanced Myomer Leg Peak State ------------ > --- POWER ------------ Light Neutrino Core > --- PROPULSION ------- Advanced Myomer Leg Combat Antigrav System Combat Antigrav System > --- UTILITY ---------- Experimental Salvage Targeting Computer Experimental Core Analyzer Advanced Weapon Cycler Advanced Transmission Jammer Graphene Brace Improved Remote Force Field System Purifier > --- WEAPON ----------- 8R-AWN's Boregun 8R-AWN's Boregun > --- INVENTORY -------- Protomatter Combat Antigrav System [Rating: 108] Favorites ----------- Power Light Neutrino Core Engine Makeshift Power Source Power Core Light Neutrino Core Propulsion Enhanced Armored Leg Leg Enhanced Armored Leg Wheel Wheel Hover Unit Combat Antigrav System Utility X0-1V1's Piety Tracker Device X0-1V1's Piety Tracker Processor Experimental Salvage Targeting Computer Hackware Hacking Suite Protection Medium Regenerative Plating Weapon 8R-AWN's Boregun Energy Gun Pulse Rifle Energy Cannon Beam Cannon Ballistic Gun 8R-AWN's Boregun Launcher Grenade Launcher Impact Weapon Power Maul Slashing Weapon Carbide Saw Build | -11 -10 -10 -10 -9 -8 -7 ------- Run | Yrd Mat Min Exi Min Mat Fac Slots Evolved 9 | . 4 . 3 . 1 1 Power . | . . . . . . . Propulsion 2 | . . . 1 . . 1 Utility 6 | . 3 . 2 . 1 . Weapon 1 | . 1 . . . . . Parts Attached 37 | 3 6 3 15 . 4 6 Power 2 | 1 . . 1 . . . Engine 1 | 1 . . . . . . Core 1 | . . . 1 . . . Reactor . | . . . . . . . Propulsion 7 | 1 . . 2 . . 4 Treads . | . . . . . . . Leg 2 | . . . 2 . . . Wheel 1 | 1 . . . . . . Hover 4 | . . . . . . 4 Flight . | . . . . . . . Utility 20 | . 4 2 10 . 3 1 Device 11 | . 1 1 7 . 2 . Storage . | . . . . . . . Processor 6 | . 2 . 2 . 1 1 Hackware 1 | . 1 . . . . . Protection 2 | . . 1 1 . . . Artifact . | . . . . . . . Weapon 8 | 1 2 1 2 . 1 1 Energy Gun . | . . . . . . . Energy Cannon 1 | . 1 . . . . . Ballistic Gun 4 | 1 1 . 2 . . . Ballistic Cannon . | . . . . . . . Launcher 3 | . . 1 . . 1 1 Special Weapon . | . . . . . . . Impact Weapon . | . . . . . . . Slashing Weapon . | . . . . . . . Piercing Weapon . | . . . . . . . Special Melee Weapon . | . . . . . . . Unidentified Prototypes 12 | . 1 1 7 . 1 2 Parts Lost . | . . . . . . . Power . | . . . . . . . Propulsion . | . . . . . . . Utility . | . . . . . . . Weapon . | . . . . . . . Highest Loss Streak . | . . . . . . . To Critical Strikes . | . . . . . . . Average Backups . | . . 1 . 2 1 1 Power . | . . . . . . . Propulsion . | . . . . 1 1 1 Utility . | . . . . 1 . . Weapon . | . . . . . . . Tool/Special . | . . . . . . . Unused Backups 11 | . . 1 5 2 2 1 Power 4 | . . . 4 . . . Propulsion . | . . . . . . . Utility 1 | . . . . . 1 . Weapon 6 | . . 1 1 2 1 1 Tool/Special . | . . . . . . . Average Slot Usage (%) 98 | . 95 100 99 100 99 99 Engine 7 | . 16 9 7 . . . Core 4 | . . 2 3 9 8 7 Leg 10 | . . . 12 18 16 10 Wheel 3 | . 16 12 . . . . Device 32 | . 1 39 35 36 40 39 Processor 11 | . 14 1 9 18 16 15 Hackware 1 | . 12 2 . . . . Protection 2 | . . 5 3 . . . Energy Gun 9 | . . 11 15 . . . Energy Cannon 1 | . 10 6 . . . . Ballistic Gun 8 | . 22 5 3 18 16 15 Impact Weapon 2 | . . . 4 . . . Peak Build Rating 108 | 3 30 38 99 93 106 108 Average Rating 56 | 1 8 32 52 92 104 102 On Entrance 50 | . 3 30 35 93 93 99 Avg Prop Armor Cover (%) . | . . . . . . . Naked Turns . | . . . . . . . Heaviest Build 58 | 7 11 22 58 41 42 42 Greatest Support 50 | 10 10 16 50 50 50 50 Greatest Overweight (x) 2 | . 1 1 2 . . 1 Average Overweight (x) . | . . . . . . . Largest Inventory Capacity 2 | . 1 2 2 2 2 2 Average Capacity 1 | . . 1 2 2 2 2 Most Carried 2 | . 1 2 2 2 2 2 Average Carried 1 | . . 1 . 1 1 1 Final Capacity 2 | . 1 2 2 2 2 2 Final Carried 2 | . 1 1 2 2 2 2 Transmogrified Parts 71 | . 1 12 58 . . . Integrity Recovered 159 | . 7 44 108 . . . Class Distribution -------------------- 66% | Mutant 26% | Scavenger-Mutant 7% | Gladiator Dominant Class ---------------- Mutant | -10/Materials Mutant | -10/Mines Mutant | -10/Exiles Scavenger-Mutant | -9/Mines Scavenger-Mutant | -8/Materials Scavenger-Mutant | -7/Factory Resources | -11 -10 -10 -10 -9 -8 -7 ----------- Run | Yrd Mat Min Exi Min Mat Fac Matter Collected 4361 | 217 370 69 564 1372 417 1352 Remotely . | . . . . . . . Salvage Created 6368 | . 664 133 728 1470 988 2385 Parts 532 | . 37 9 96 71 98 221 Haulers Intercepted 7 | . 2 . . . 3 2 Recyclers Shooed 1 | . . . . 1 . . Parts Field Recycled . | . . . . . . . Retrieved Matter . | . . . . . . . Parts Self-Destructed . | . . . . . . . Prevented . | . . . . . . . Parts Restored . | . . . . . . . Kills | -11 -10 -10 -10 -9 -8 -7 ------- Run | Yrd Mat Min Exi Min Mat Fac Combat Hostiles Destroyed 109 | . 14 2 1 30 20 42 Guns 103 | . 9 1 1 30 20 42 Cannons 6 | . 5 1 . . . . Classes Destroyed 21 | . 5 . 2 7 3 4 Worker 6 | . 1 . . . 2 3 Builder 9 | . . . . 2 . 7 Hauler 7 | . 2 . . . 3 2 Recycler 3 | . . . . 1 1 1 Mechanic 1 | . . . . . 1 . Operator 3 | . 1 . . . . 2 Turret 1 | . . . 1 . . . Watcher 1 | . . . . . . 1 Swarmer 9 | . 6 . . . 2 1 Grunt 46 | . 8 2 . 9 9 18 Brawler 3 | . . . . . . 3 Duelist 5 | . . . . 2 1 2 Sentry 15 | . . . . 3 5 7 Demolisher 2 | . . . . 2 . . Specialist 4 | . . . . . 2 2 Hunter 3 | . . . . . . 3 Programmer 6 | . . . . . . 6 Heavy 1 | . . . . . 1 . Behemoth 1 | . . . . 1 . . Zionite 8 | . . . 8 . . . Assembled 14 | . . . . 14 . . Thug 1 | . . 1 . . . . Wizard 1 | . . . . . . 1 Best Kill Streak 14 | . 4 2 11 14 4 13 Combat Bots Only 14 | . 3 2 1 14 4 10 Max Kills in Single Turn 3 | . 1 1 2 3 2 3 Gunslinging 1 | . . . . . . 1 Exploded . | . . . . . . . Melee . | . . . . . . . Uniques/NPCs Destroyed 4 | . . . 4 . . . 8R-AWN (-10/Exiles) EX-HEX (-10/Exiles) EX-DEC (-10/Exiles) EX-BIN (-10/Exiles) Combat | -11 -10 -10 -10 -9 -8 -7 -------- Run | Yrd Mat Min Exi Min Mat Fac Hostile Shots Fired 388 | . 55 12 . 62 53 206 Missed 127 | . 6 3 . 15 15 88 Hits 261 | . 49 9 . 47 38 118 Melee 3 | . . . . 1 . 2 Projectile 258 | . 49 9 . 46 38 116 AOE 12 | . . . . 12 . . Critical Strikes 11 | . . . . 1 2 8 Actively Blocked 8 | . . . . . . 8 Part Disruptions 1 | . . . . . . 1 Damage Taken 3638 | . 550 111 . 871 358 1748 Core 2969 | . 443 92 . 720 284 1430 Absorbed by Shields 854 | . . 32 . 103 228 491 Redirected to Core 2236 | . 349 58 . 528 234 1067 Ignored by Resistances 57 | . . . . . 57 . Regen/Repaired (Parts) 7 | . . . 7 . . . Core Remaining (%) 85 | 100 . . . 57 100 . Volleys Fired 460 | . 62 28 121 83 47 119 Largest 2 | . 2 2 2 2 2 2 Hottest 113 | . 80 80 113 60 60 60 Shots Fired 805 | . 120 41 151 162 94 237 Gun 756 | . 99 13 151 162 94 237 Cannon 46 | . 21 25 . . . . Launcher 3 | . . 3 . . . . Special . | . . . . . . . Kinetic 664 | . 99 13 59 162 94 237 Thermal 90 | . 21 25 44 . . . Explosive 3 | . . 3 . . . . Electromagnetic 48 | . . . 48 . . . Robot Hit Streak 26 | . 16 7 7 21 13 26 Robot Miss Streak 12 | . 5 2 12 8 4 2 Penetration Max 2 | . . . 1 2 1 2 Secondary Targets 12 | . 1 . 1 1 1 8 Max Gunslinging Chain 1 | . 1 . 1 1 1 1 Shots Hit Robots 491 | . 74 18 73 91 54 181 Core Hits 257 | . 26 7 38 55 37 94 Critical Kills 85 | . . . 9 22 17 37 Critical Parts Destroyed 100 | . . . 10 27 15 48 Critical Strikes 199 | . . . 21 55 32 91 Burn 1 | . . . 1 . . . Destroy 198 | . . . 20 55 32 91 Melee Attacks . | . . . . . . . Impact . | . . . . . . . Slashing . | . . . . . . . Piercing . | . . . . . . . Sneak Attacks . | . . . . . . . Combat Hostiles . | . . . . . . . Follow-up Attacks . | . . . . . . . Damage Inflicted 9942 | . 983 264 1163 1860 1267 4405 Guns 8783 | . 791 93 1163 1860 1184 3692 Cannons 363 | . 192 171 . . . . Explosions 796 | . . . . . 83 713 Melee . | . . . . . . . Ramming . | . . . . . . . Kinetic 8327 | . 791 93 707 1860 1184 3692 Thermal 1449 | . 192 171 418 . . 668 Explosive 128 | . . . . . 83 45 Electromagnetic 38 | . . . 38 . . . Impact . | . . . . . . . Slashing . | . . . . . . . Piercing . | . . . . . . . Highest Corruption 2 | . . . . . . 2 Average Corruption 1 | . . . . . . 1 Corruption Purged . | . . . . . . . Corruption Blocked . | . . . . . . . Effects 2 | . . . . . . 2 Matter Fused 1 | . . . . . . 1 Weapon Failures 1 | . . . . . . 1 Overload Shots . | . . . . . . . Overflow Damage 4 | . . 4 . . . . Projectiles 4 | . . 4 . . . . Explosions . | . . . . . . . Melee . | . . . . . . . Knockbacks . | . . . . . . . Impact . | . . . . . . . Kinetic . | . . . . . . . Secondary . | . . . . . . . Self-Inflicted Damage 168 | . . 24 . . . 144 Shots 3 | . . 1 . . . 2 Rammed . | . . . . . . . Targets Rammed . | . . . . . . . Kicked . | . . . . . . . Crushed . | . . . . . . . Highest Temperature 235 | . 108 206 159 235 3 188 Average Temperature 58 | . 34 80 51 102 3 9 Received Heat Transfer 669 | . 222 44 . 132 100 171 Effects 2 | . . . . 2 . . Energy Bleed 1 | . . . . 1 . . Interference 1 | . . . . 1 . . Siege Activations . | . . . . . . . Martial Activations . | . . . . . . . Shielding Activations . | . . . . . . . Robots Disrupted . | . . . . . . . Combat Hostiles . | . . . . . . . Robots Corrupted . | . . . . . . . Combat Hostiles . | . . . . . . . Parts Fried 1 | . . . . . . 1 Impact Corruptions . | . . . . . . . Robots Melted . | . . . . . . . Combat Hostiles . | . . . . . . . Parts Melted . | . . . . . . . Heat Transferred 1471 | . 407 370 244 . . 450 Parts Sabotaged . | . . . . . . . Parts Stolen . | . . . . . . . Parts Stripped . | . . . . . . . Power Chain Reactions . | . . . . . . . Alert | -11 -10 -10 -10 -9 -8 -7 ------- Run | Yrd Mat Min Exi Min Mat Fac Maximum Alert Level 4 | . . . . 1 2 4 Low Security (%) 62 | 100 100 100 . 75 22 . Level 1 12 | . . . . 24 49 5 Level 2 17 | . . . . . 27 64 Level 3 2 | . . . . . . 9 Level 4 4 | . . . . . . 21 Level 5 . | . . . . . . . High Security . | . . . . . . . Max Security . | . . . . . . . Peak Influence 1525 | . 129 116 . 243 572 1525 Initial 256 | . . . . . 87 256 Average 224 | . 25 33 . 113 286 687 Influence Increases 3934 | . 430 374 . 592 823 1715 Destroy 0b10 Robot/C 1960 | . 280 40 . 320 480 840 Destroy 0b10 Robot/NC 165 | . 20 15 . 15 35 80 Destroy Leader 386 | . 64 10 . 60 106 146 Allied During Kill 28 | . . 1 . 13 14 . Successful Hack 60 | . 20 . . . 30 10 Disable Machine 570 | . 45 120 . 120 90 195 Anti-Garrison Action 300 | . . . . . . 300 Destroy Structure 334 | . 1 72 . 64 53 144 Lose Combat Pursuer 15 | . . . . . 15 . Miscellaneous 116 | . . 116 . . . . Influence Decreases 2415 | . 429 274 101 367 484 760 Entered New Map 548 | . . 1 101 . 138 308 Time Decay 1660 | . 242 273 . 367 326 452 Lost Ally 20 | . . . . . 20 . Purge Threat 187 | . 187 . . . . . Squads Dispatched 19 | . 2 . . . 3 14 Investigation 5 | . 1 . . . 1 3 Extermination 2 | . . . . . . 2 Reinforcement 6 | . 1 . . . 2 3 Assault 4 | . . . . . . 4 Garrison 2 | . . . . . . 2 Intercept . | . . . . . . . Searches Triggered . | . . . . . . . Construction Impeded 1 | . . . . . . 1 Haulers Reinforced 1 | . . . . . . 1 Active Scanning Responses . | . . . . . . . Cargo Convoy Interrupts 1 | . . . . . . 1 Stealth | -11 -10 -10 -10 -9 -8 -7 --------- Run | Yrd Mat Min Exi Min Mat Fac Distress Signals 6 | . 2 . . . 4 . Communications Jammed 33 | . . . . . 15 18 Distress Signals 32 | . . . . . 15 17 Times Spotted 152 | . 24 2 12 31 30 53 Peak Tracking Total 11 | . 4 2 9 5 4 11 Tactical Retreats 3 | . . . 1 1 1 . Traps | -11 -10 -10 -10 -9 -8 -7 ------- Run | Yrd Mat Min Exi Min Mat Fac Traps Triggered 2 | . 1 . . . . 1 Indirectly . | . . . . . . . Trap Hack Attempts . | . . . . . . . Triggered . | . . . . . . . Disarmed . | . . . . . . . Reprogrammed . | . . . . . . . Reused . | . . . . . . . Traps Extracted . | . . . . . . . Installed . | . . . . . . . Triggered . | . . . . . . . Machines | -11 -10 -10 -10 -9 -8 -7 ---------- Run | Yrd Mat Min Exi Min Mat Fac Machines Disabled 62 | . 3 8 22 8 6 15 Max in Single Turn 4 | . 1 1 2 2 2 4 Garrison Access 3 | . . . . . 1 2 Machines Repaired . | . . . . . . . Machines Dismantled . | . . . . . . . Machines Sabotaged . | . . . . . . . Overloaded Fab Kills . | . . . . . . . Hacking | -11 -10 -10 -10 -9 -8 -7 --------- Run | Yrd Mat Min Exi Min Mat Fac Machines Accessed 22 | . 6 1 1 . 9 5 Terminals 16 | . 6 . . . 7 3 Fabricators 2 | . . . . . . 2 Repair Stations . | . . . . . . . Recycling Units . | . . . . . . . Scanalyzers 1 | . . . . . 1 . Garrison Access 1 | . . . . . 1 . Total Hacks 49 | . 14 1 1 . 20 13 Successful 33 | . 12 1 1 . 13 6 Failed 16 | . 2 . . . 7 7 Catastrophic 1 | . . . . . 1 . Database Lockouts . | . . . . . . . Manual 25 | . 9 . . . 13 3 Terminals 34 | . 14 . . . 13 7 Fabricators 6 | . . . . . . 6 Repair Stations . | . . . . . . . Recycling Units . | . . . . . . . Scanalyzers 5 | . . . . . 5 . Garrison Access 2 | . . . . . 2 . Terminal Hacks 10 | . 7 1 1 . 1 . Record 1 | . . . 1 . . . Prototype ID Bank 3 | . 3 . . . . . Open Door 1 | . . 1 . . . . Branch Access Points 1 | . . . . . 1 . Unreport Threat 2 | . 2 . . . . . Locate Traps 2 | . 2 . . . . . Fabricator Hacks 4 | . . . . . . 4 Load Schematic 2 | . . . . . . 2 Build 2 | . . . . . . 2 Repair Station Hacks . | . . . . . . . Recycling Unit Hacks . | . . . . . . . Scanalyzer 4 | . . . . . 4 . Insert Component 2 | . . . . . 2 . Analyze 2 | . . . . . 2 . Garrison Access Hacks 1 | . . . . . 1 . Seal Access 1 | . . . . . 1 . Unauthorized Hacks 14 | . 5 . . . 7 2 Terminals 14 | . 5 . . . 7 2 Botnet 2 | . . . . . 2 . Skim 12 | . 5 . . . 5 2 Fabricators . | . . . . . . . Repair Stations . | . . . . . . . Recycling Units . | . . . . . . . Scanalyzers . | . . . . . . . Garrison Access . | . . . . . . . Data Cores Recovered 3 | . 1 . . . . 2 Used 1 | . . . . . . 1 Hacking Detections 12 | . 2 . . . 6 4 Full Trace Events 4 | . . . . . 1 3 Feedback Events . | . . . . . . . Feedback Blocked . | . . . . . . . Robot Schematics Acquired . | . . . . . . . Robots Built . | . . . . . . . Authchips . | . . . . . . . Time . | . . . . . . . Total Robot Build Rating . | . . . . . . . Part Schematics Acquired 1 | . . . . . 1 . Parts Built 4 | . . . . . . 4 Authchips . | . . . . . . . Time 256 | . . . . . . 256 Total Part Build Rating 32 | . . . . . . 32 Part Studies Acquired . | . . . . . . . Parts Repaired . | . . . . . . . Time . | . . . . . . . Parts Recycled . | . . . . . . . Recycled Matter . | . . . . . . . Retrieved Matter . | . . . . . . . Retrieved Components . | . . . . . . . Parts Scanalyzed 2 | . . . . . 2 . Part Schematics Acquired 1 | . . . . . 1 . Parts Damaged 1 | . . . . . 1 . Bothacking | -11 -10 -10 -10 -9 -8 -7 ------------ Run | Yrd Mat Min Exi Min Mat Fac Used RIF Installer . | . . . . . . . Robots Hacked . | . . . . . . . Non-combat . | . . . . . . . Combat . | . . . . . . . Robot Hacks Applied . | . . . . . . . Relay Couplers Released 2 | . . . . . . 2 Machine Destruction 2 | . . . . . . 2 Fabnet Peak Effective % . | . . . . . . . Robots Rewired . | . . . . . . . Allies Hacked . | . . . . . . . Hacks Repelled . | . . . . . . . Allies | -11 -10 -10 -10 -9 -8 -7 -------- Run | Yrd Mat Min Exi Min Mat Fac Total Allies 3 | . . 1 . 1 1 . Largest Group 1 | . . 1 1 1 1 . Highest-Rated Group 85 | . . 85 85 85 57 . Highest-Rated Ally 85 | . . 85 85 85 57 . Total Orders 4 | . . . 4 . . . EXPLORE 3 | . . . 3 . . . RETURN 1 | . . . 1 . . . Ally Attacks 82 | . . . 56 16 10 . Total Damage 1474 | . . . 776 362 336 . Kills 17 | . . 3 5 5 4 . Allies Corrupted . | . . . . . . . Allies Melted . | . . . . . . . X0-1V1 Amusement Gains 165 | . 12 13 60 40 . 40 Average Entertainment 28 | . 22 20 . 42 29 26 Good Acts 27 | . . 7 . 10 6 4 Bad Acts 16 | . 1 1 . 5 4 5 Intel | -11 -10 -10 -10 -9 -8 -7 ------- Run | Yrd Mat Min Exi Min Mat Fac Active Infowar (turns) 5600 | . . 352 3878 103 702 565 Optics 1883 | . . . 1883 . . . Sensors 1527 | . . 217 1310 . . . T.N.C. 3 | . . . . . . 3 Machine Analysis 42 | . . . . . 42 . Triangulation 347 | . . . 347 . . . Spoofing 337 | . . . 337 . . . Jamming 1368 | . . . 1 103 702 562 ECM 541 | . . 352 189 . . . Robot Analysis Total . | . . . . . . . Derelict Logs Recovered 2 | . . 1 . 1 . . Drone Launches 5 | . . . 5 . . . Drone Recoveries 5 | . . . 5 . . . Exploration | -11 -10 -10 -10 -9 -8 -7 ------------- Run | Yrd Mat Min Exi Min Mat Fac Turns Passed 11834 | 27 1275 1114 6653 896 737 1132 Spaces Moved 4187 | 32 682 602 1154 514 461 742 Core 10 | 10 . . . . . . Treads . | . . . . . . . Legs 2436 | . . . 951 514 461 510 Wheels 1509 | 22 682 602 203 . . . Hover 232 | . . . . . . 232 Flight . | . . . . . . . Fastest Speed 50 | 50 80 80 105 120 120 74 Average Speed 112 | 70 80 102 136 120 120 105 Slowest Speed 260 | 80 95 115 260 120 120 129 Overloaded Moves . | . . . . . . . Propulsion Burnouts . | . . . . . . . Robots Hopped . | . . . . . . . Potential Cave-ins . | . . . . . . . Cave-ins Triggered . | . . . . . . . Exploration Rate (%) 58 | 3 91 68 82 84 53 25 Regions Visited 6 Branch Regions 3 Pre-discovered Areas 4 | . . 2 1 1 . . Known Exits Taken 2 | . . 1 . 1 . . Unknown Exits Taken 4 | 1 1 . 1 . 1 . Scrap Searched 2 | . . 1 . 1 . . Spaces Dug 1 | . . . 1 . . . Terrain Destroyed 359 | . . 27 3 73 67 189 Melee . | . . . . . . . Projectile 113 | . . . 3 72 26 12 AOE 235 | . . 27 . . 39 169 Terrain Rammed . | . . . . . . . Walls Destroyed . | . . . . . . . Machines Disabled . | . . . . . . . Actions | -11 -10 -10 -10 -9 -8 -7 --------- Run | Yrd Mat Min Exi Min Mat Fac Total 10706 | 34 1287 1055 6109 694 587 940 Wait 5835 | . 526 416 4781 71 19 22 Move 4181 | 31 681 601 1153 513 460 742 Hop . | . . . . . . . Pick Up 21 | . 1 2 12 2 3 1 Fast Attach 38 | 3 6 3 14 . 4 8 Attach 1 | . . . . . 1 . Detach 2 | . . . 1 . 1 . Swap 5 | . . 1 3 . . 1 Drop 46 | . 2 4 24 2 6 8 Fire 460 | . 62 28 121 83 47 119 Melee . | . . . . . . . Ram . | . . . . . . . Kick . | . . . . . . . Crush . | . . . . . . . Escape Stasis . | . . . . . . . Rewire . | . . . . . . . Trap . | . . . . . . . Miscellaneous 117 | . 9 . . 23 46 39 Route ------- -11/Scrapyard -10/Materials (discovered 6 exits: *Mat x3 / *Min x2 / [*Sub]) -10/Mines (discovered 3 exits: *Mat x2 / *Exi) -10/Exiles -9/Mines -8/Materials (discovered 4 exits: *Fac x3 / Sto) -7/Factory (discovered 1 exit: [*Fac]) History --------- Turn | Location | Event 6 | -11/Scrapyard | Discovered new exit (range 16) 28 | -11/Scrapyard | Entered Materials 63 | -10/Materials | Upgraded with Weapon slot (x1) 129 | -10/Materials | Discovered new exit (range 14) 271 | -10/Materials | Discovered new exit (range 12) 304 | -10/Materials | Build established: Mutant 414 | -10/Materials | Discovered new exit (range 4) 464 | -10/Materials | Discovered new exit (range 9) 505 | -10/Materials | Discovered new exit (range 11) 576 | -10/Materials | Discovered new exit (range 12) 591 | -10/Materials | Reached level 2 599 | -10/Materials | Upgraded with Utility slot (x2) 812 | -10/Materials | Learned 4 Subcaves zone layouts 989 | -10/Materials | Learned 2 Mines zone layouts 1028 | -10/Materials | Learned location of 1 exit from Recycling 1079 | -10/Materials | Learned Storage stockpile data 1210 | -10/Materials | Learned 2 Mines zone layouts 1242 | -10/Materials | Made a sacrifice at D.C.S.S. Altar Unit 1242 | -10/Materials | Forcibly received Sfc. Transmogifier from X0-1V1 1242 | -10/Materials | Reached level 3 1243 | -10/Materials | Core integrity fell below 50% 1250 | -10/Materials | Upgraded with Utility slot (x1) 1303 | -10/Materials | Entered Mines 1303 | -10/Mines | Reached level 4 1304 | -10/Mines | Identified exit to Materials 1305 | -10/Mines | Identified exit to Exiles 1370 | -10/Mines | Met a Derelict bent on vengeance 1373 | -10/Mines | X0-1V1 put everyone to sleep 1418 | -10/Mines | Learned location of Storage (-8) 1479 | -10/Mines | X0-1V1 sent allied B-75 Beast (x1) 1480 | -10/Mines | Core integrity fell below 20% 1625 | -10/Mines | Found the Drone Emporium 1632 | -10/Mines | Found Prototype Device 1632 | -10/Mines | Identified Thief Drone Bay 1721 | -10/Mines | Deemed a non-threat by the Exiles lab entrance 2033 | -10/Mines | X0-1V1 woke everyone up 2336 | -10/Mines | X0-1V1 added 0b10 threat records associated with you (minor) 2417 | -10/Mines | Entered Exiles 2417 | -10/Exiles | Accompanied by 1 ally 2445 | -10/Exiles | Met 8R-AWN 2465 | -10/Exiles | Met EX-HEX 2549 | -10/Exiles | Met EX-DEC 2555 | -10/Exiles | Learned location of Zion (-6) 3868 | -10/Exiles | Attacked by the Exiles 3955 | -10/Exiles | Discovered new exit (range 23) 5916 | -10/Exiles | Destroyed 8R-AWN 6895 | -10/Exiles | Build established: Gladiator 7807 | -10/Exiles | Build established: Mutant 8226 | -10/Exiles | Found Prototype Device 8226 | -10/Exiles | Identified AS-neutralizer No. 17b 8231 | -10/Exiles | Found Prototype Ballistic Gun 8231 | -10/Exiles | Identified 8R-AWN's Boregun 8234 | -10/Exiles | Found 8R-AWN's Boregun 8258 | -10/Exiles | Upgraded with Propulsion slot (x1) 8258 | -10/Exiles | Upgraded with Utility slot (x2) 8261 | -10/Exiles | Found Prototype Protection 8261 | -10/Exiles | Identified 8R-AWN's Armor/EX 8314 | -10/Exiles | Found Prototype Processor 8314 | -10/Exiles | Identified Exp. Targeting Computer 8473 | -10/Exiles | Destroyed EX-HEX 8521 | -10/Exiles | Destroyed EX-DEC 8530 | -10/Exiles | Destroyed EX-BIN 8569 | -10/Exiles | Found Prototype Device 8593 | -10/Exiles | Identified System Purifier 8609 | -10/Exiles | Found Prototype Energy Gun 8618 | -10/Exiles | Identified AWS/EX-DEC 8623 | -10/Exiles | Found Prototype Processor 8662 | -10/Exiles | Identified Exp. Core Analyzer 9046 | -10/Exiles | Build established: Scavenger-Mutant 9070 | -10/Exiles | Entered Mines 9071 | -9/Mines | Assembled infested the area 9072 | -9/Mines | Reached level 5 9134 | -9/Mines | A weapon hastily lodged in a ceiling crevice suddenly fell to the ground 9136 | -9/Mines | X0-1V1 sent allied B-75 Beast (x1) 9205 | -9/Mines | Found a damaged Exp. Sensor Array with a note attached 9255 | -9/Mines | Destroyed 14 combat bots 9299 | -9/Mines | Reached level 6 9345 | -9/Mines | Core integrity restored by X0-1V1 (+127) 9418 | -9/Mines | Found a hidden stash of uninstalled traps 9578 | -9/Mines | Core integrity restored by X0-1V1 (+127) 9583 | -9/Mines | X0-1V1 activates XOMVISION 9705 | -9/Mines | Destroyed B-75 Beast 9719 | -9/Mines | Reached level 7 9821 | -9/Mines | Identified exit to Materials 9821 | -9/Mines | X0-1V1 revealed exit location to -8/Materials 9884 | -9/Mines | X0-1V1 vaporized surrounding terrain (radius 23) 9966 | -9/Mines | Entered Materials 9968 | -8/Materials | Reached level 8 9994 | -8/Materials | Upgraded with Utility slot (x1) 10045 | -8/Materials | X0-1V1 sent allied Chaos Knight (x1) 10095 | -8/Materials | Discovered new exit (range 8) 10126 | -8/Materials | X0-1V1 vaporized surrounding terrain (radius 23) 10126 | -8/Materials | Reached level 9 10396 | -8/Materials | Discovered new exit (range 10) 10435 | -8/Materials | Reached level 10 10501 | -8/Materials | X0-1V1 vaporized surrounding terrain (radius 17) 10523 | -8/Materials | Identified exit to Storage 10653 | -8/Materials | Discovered new exit (range 3) 10656 | -8/Materials | Reached level 11 10703 | -8/Materials | Entered Factory 10705 | -7/Factory | Reached level 12 10776 | -7/Factory | Reached level 13 10818 | -7/Factory | X0-1V1 put everyone to sleep 10869 | -7/Factory | X0-1V1 activates XOMVISION 11377 | -7/Factory | X0-1V1 sent hostile H-55 Commando (x2) 11377 | -7/Factory | Reached level 14 11415 | -7/Factory | Fabricated Cmb. Antigrav System? 11446 | -7/Factory | Upgraded with Propulsion slot (x1) 11458 | -7/Factory | X0-1V1 woke everyone up 11468 | -7/Factory | Discovered new exit (range 8) 11475 | -7/Factory | Garrison activated, responded to threat 11552 | -7/Factory | Reached level 15 11655 | -7/Factory | Cargo convoy interrupted 11663 | -7/Factory | Fabricated Cmb. Antigrav System (x2) 11708 | -7/Factory | Destroyed 10 combat bots 11760 | -7/Factory | Reached level 16 11769 | -7/Factory | Core integrity fell below 50% 11800 | -7/Factory | Core integrity fell below 20% 11810 | -7/Factory | Destroyed 9 combat bots 11835 | -7/Factory | Destroyed by H-61 Shepherd with Heavy Assault Cannon Last Messages --------------- 11819_ U-05 Engineer destroyed. 11819_ HV Slug penetrates Wall. 11819_ U-05 Engineer builds a Wall. 11820_ K-01 Serf collects debris. 11824_ U-05 Engineer builds a Wall. 11824_ K-01 Serf collects debris. 11824_ Knocked back. 11825_ K-01 Serf collects debris. 11827_ U-05 Engineer builds a Wall. 11828_ K-01 Serf collects debris. 11831_ Acquired 7 matter. 11831_ HV Slug penetrates H-61 Shepherd. 11831_ HV Slug penetrates Wall. 11831_ HV Slug penetrates H-61 Shepherd. 11831_ HV Slug penetrates Wall. 11832_ Movement behavior is fully back under control. 11832_ K-01 Serf collects debris. 11833_ U-05 Engineer builds a Wall. 11835_ X0-1V1 laughs nastily! Map ----- +----------------------------------------------------+ | ??????"????# ^ ^ =%== =%!== = # """???# | | ?????"""???+ """"! *=!*[ = " """???## | | ????? ???# " " ! ! % # """????? | | ??? """=??# == % % %%" #?? """????? | | ?"" """ !?##### [!!"%" ""% #????? ????? | | ?G """ ?????# [%*%%%=""" ###+###????? | | """ ##### ! %%%%"" ! ???? | | ? # # [%==* /!=!%[= ???? | | ????#"""" "# %=! [ % !|%==*%[! ???? | | ???##" = # =[*%! =%[!%=%!!! ???? | | ???# " # !=[*! [*%%=!=*=%=== ???? | | ???##" [ %!#%#####+############/#########????? | | ???# " [%%*" ##==%%*%!#?? !=%=[ "#?????? | | ???# " *"""###=%!=%= #?? =[%% " ?????? | | ???##" %" # #[%=![* #?? ? % ???????? | | ????#" " # #!=!* #??? ? ?? +??????? | | ????#" [ ] "# # #%[%= ##?????????? ????????? | | ????###"""" "" #### #!/= ##???????????????????? | | ??????### #### #??# #H%!gu ##???????????????????? | | ????????##???# #??# #/=g ##???????????????????? | | ?????????????# #??# #!! ##???????????????????? | | ?????????????# #??# #=!* ##???????????????????? | | ?????????????###??# #%k ##???????????????????? | | ?????????????????? # % ##???????????????????? | | ?????????????????# # k ##???????????????????? | | ?????????????????# # @ ##???????????????????? | | ?????????????????# # ##???????????????????? | | ?????????????????## # u ##???????????????????? | | ????????????????????# u##???????????????????? | | ??????????????????? ##########???????????????????? | | ??????????????????#### ? ####????????????????????? | | ??????????????????????###????????????????????????? | | ?????????????????????????????????????????????????? | | ?????????????????????????????????????????????????? | | ?????????????????????????????????????????????????? | | ?????????????????????????????????????????????????? | | ?????????????????????????????????????????????????? | | ?????????????????????????????????????????????????? | | ?????????????????????????????????????????????????? | | ?????????????????????????????????????????????????? | | ?????????????????????????????????????????????????? | | ?????????????????????????????????????????????????? | | ?????????????????????????????????????????????????? | | ?????????????????????????????????????????????????? | | ?????????????????????????????????????????????????? | | ?????????????????????????????????????????????????? | | ?????????????????????????????????????????????????? | | ?????????????????????????????????????????????????? | | ?????????????????????????????????????????????????? | | ?????????????????????????????????????????????????? | +----------------------------------------------------+ Best States ------------- Heat Dissipation 43 Energy Generation 44 Energy Capacity 1610 Matter Stores 700 Matter Capacity 700 Sight Range 22 Robot Scan Range 15 Terrain Scan Density 10 ECM Strength 1 Jamming Range 16 Additional Mass Support 12 Armor Coverage 225 Resistance: KI 20 Resistance: TH 23 Utility Shielding 66 Weapon Cycling 25 Evasion (%) 55 Targeting Accuracy 12 Core Analysis 8 Energy Filtering 50 Salvage Targeting 5 Offensive Hacking 10 Defensive Hacking 14 Item Schematics ----------------- Cmb. Antigrav System | -8/Materials | Scanalyzed Robot Schematics ------------------ None Fabricated ------------ Cmb. Antigrav System | x2 | -7/Factory Cmb. Antigrav System | x2 | -7/Factory Repaired ---------- Nothing Studied --------- None Alien Tech Used ----------------- None Achievements -------------- None Challenges ------------ None RPGLIKE | -11 -10 -10 -10 -9 -8 -7 --------- Run | Yrd Mat Min Exi Min Mat Fac Levels Raised 15 | . 2 1 . 3 4 5 XP Earned 25712 | 3000 4425 1350 200 3750 5605 7382 XP Spent 20740 | . 3150 500 3825 2965 5800 4500 Upgrades 35 | . 5 1 8 11 5 5 Propulsion Slot 2 | . . . 1 . . 1 Utility Slot 6 | . 3 . 2 . 1 . Weapon Slot 1 | . 1 . . . . . Core Integrity 8 | . . . 5 3 . . Heat Dissipation 3 | . . . . 3 . . Energy Generation 5 | . . . . 1 . 4 Inventory Capacity 2 | . 1 1 . . . . Ranged Accuracy 8 | . . . . 4 4 . Protomatter Created 1839 | . 64 36 . 235 508 996 Integrity Restored 2379 | . 172 . . 495 987 725 Core 1838 | . 143 . . 495 647 553 Parts 541 | . 29 . . . 340 172 Protomatter Decayed 673 | . 5 67 30 45 128 398 Game ------ Seed PowerRegenerativeShell Manual? 0 Play Time 01:10:21 Cumulative 245.0 hours Start 2026.08.29 @ 05:58:22 End 2026.08.29 @ 13:55:40 Sessions 2 Manual Loads 0 Difficulty Rogue Special Mode Winter2019/RPGLIKE Game No. 156 Rogue 156 Adventurer 0 Explorer 0 Win Type - Total 6 Types 2/0/2/1/0/0/0/1/0/0 Lore% 59 Gallery% 74 Achievement% 58 Wizard Run 0 Options --------- Layout 2 ASCII 0 Keyboard 0 Movement Mouse Keybinds 0 Fullscreen 1 Font 32/SmallcapsGlow Map View 50x44 Zoom Use 0% Tactical HUD 1 Map Filters NONE Filters NONE Steam 1 RUN: 650c9112-3298-4fbe-a600-019867097a70